fUSD/lending_fUSD_20250522
["ID","MTS","AMOUNT","RATE_DAILY","PERIOD"]
[361987280,1747926634183,-457.61,0.00032876,5]
[361987281,1747926634192,-420.0,0.00032876,5]
[361987282,1747926634203,-543.68,0.00032876,5]
[361987283,1747926634214,-420.0,0.00032876,5]
[361987284,1747926634228,-821.58,0.00032876,5]
[361987285,1747926634239,-689.6,0.00032876,5]
[361987286,1747926634249,-550.52,0.00032876,5]
[361987287,1747926634262,-420.0,0.00032876,5]
[361987288,1747926634276,-477.07,0.00032876,5]
[361987289,1747926634297,-420.0,0.00032876,5]
[361987290,1747926634308,-420.0,0.00032876,5]
[361987291,1747926634321,-413.20339115,0.00032876,5]
[361987292,1747926634331,-420.0,0.00032876,5]
[361987294,1747926634342,-322.35155479,0.00032876,5]
[361987296,1747926634352,-420.0,0.00032876,5]
[361987298,1747926634364,-1984.81,0.00032876,2]
[361987300,1747926634374,-420.0,0.00032876,5]
[361987302,1747926634383,-420.0,0.00032876,5]
[361987304,1747926634395,-529.58,0.00032876,5]
[361987306,1747926634407,-512.67,0.00032876,5]
[361987308,1747926634417,-420.0,0.00032876,5]
[361987310,1747926634427,-1551.23,0.00032876,5]
[361987312,1747926634437,-420.0,0.00032876,5]
[361987314,1747926634447,-420.0,0.00032876,5]
[361987316,1747926634456,-641.57,0.00032876,5]
[361987318,1747926634466,-663.75,0.00032876,5]
[361987320,1747926634476,-420.0,0.00032876,5]
[361987362,1747926634857,-420.0,0.00032876,5]
[361987365,1747926634883,-208.29976851,0.00032876,5]
[361987367,1747926634893,-951.39,0.00032876,5]
[361987369,1747926634903,-462.6050819,0.00032876,5]
[361987371,1747926634913,-485.41,0.00032876,5]
[361987373,1747926634922,-420.0,0.00032876,5]
[361987375,1747926634932,-990.98,0.00032876,5]
[361987377,1747926634941,-420.0,0.00032876,5]
[361987379,1747926634951,-420.0,0.00032876,5]
[361987381,1747926634960,-420.0,0.00032876,5]
[361987383,1747926634970,-420.0,0.00032876,5]
[361987385,1747926634979,-420.0,0.00032876,5]
[361987387,1747926634989,-420.0,0.00032876,5]
[361987389,1747926635000,-420.0,0.00032876,5]
[361987391,1747926635009,-420.0,0.00032876,5]
[361987393,1747926635019,-844.57,0.00032876,5]
[361987395,1747926635028,-420.0,0.00032876,5]
[361987397,1747926635038,-932.71,0.00032876,5]
[361987399,1747926635047,-780.21,0.00032876,5]
[361987401,1747926635056,-420.0,0.00032876,5]
[361987403,1747926635065,-780.79,0.00032876,5]
[361987405,1747926635075,-1006.12,0.00032876,5]
[361987407,1747926635085,-420.0,0.00032876,5]
[361987409,1747926635095,-420.0,0.00032876,5]
[361987411,1747926635104,-692.67,0.00032876,5]
[361987413,1747926635113,-420.0,0.00032876,5]
[361987415,1747926635123,-1439.69,0.00032876,5]
[361987417,1747926635133,-420.0,0.00032876,5]
[361987419,1747926635142,-420.0,0.00032876,5]
[361987421,1747926635153,-525.3,0.00032876,5]
[361987423,1747926635163,-420.0,0.00032876,5]
[361987425,1747926635172,-420.0,0.00032876,5]
[361987427,1747926635181,-1000.16,0.00032876,5]
[361987429,1747926635191,-309.02668224,0.00032876,5]
[361987430,1747926635201,-420.0,0.00032876,5]
[361987431,1747926635210,-677.9,0.00032876,5]
[361987432,1747926635219,-817.12,0.00032876,5]
[361987433,1747926635228,-420.0,0.00032876,5]
[361987434,1747926635237,-493.21,0.00032876,5]
[361987435,1747926635246,-420.0,0.00032876,5]
[361987436,1747926635256,-420.0,0.00032876,5]
[361987437,1747926635265,-420.0,0.00032876,5]
[361987438,1747926635275,-420.0,0.00032876,5]
[361987439,1747926635284,-660.88,0.00032876,5]
[361987440,1747926635293,-420.0,0.00032876,5]
[361987441,1747926635303,-624.74,0.00032876,5]
[361987443,1747926635314,-420.0,0.00032876,5]
[361987445,1747926635325,-420.0,0.00032876,5]
[361987447,1747926635334,-510.16763529,0.00032876,5]
[361987449,1747926635344,-420.0,0.00032876,5]
[361987451,1747926635355,-420.0,0.00032876,5]
[361987453,1747926635364,-420.0,0.00032876,5]
[361987455,1747926635373,-1295.62,0.00032876,5]
[361987457,1747926635383,-420.0,0.00032876,5]
[361987459,1747926635393,-420.0,0.00032876,5]
[361987461,1747926635403,-778.17,0.00032876,5]
[361987463,1747926635413,-420.0,0.00032876,5]
[361987465,1747926635422,-451.57,0.00032876,5]
[361987467,1747926635432,-420.0,0.00032876,5]
[361987469,1747926635440,-996.56,0.00032876,5]
[361987471,1747926635449,-420.0,0.00032876,5]
[361987473,1747926635459,-562.63,0.00032876,5]
[361987475,1747926635469,-458.6,0.00032876,5]
[361987477,1747926635479,-420.0,0.00032876,5]
[361987479,1747926635488,-684.29,0.00032876,5]
[361987481,1747926635497,-420.0,0.00032876,5]
[361987483,1747926635507,-420.0,0.00032876,5]
[361987485,1747926635516,-894.65,0.00032876,5]
[361987486,1747926635526,-420.0,0.00032876,5]
[361987488,1747926635535,-420.0,0.00032876,5]
[361987491,1747926635546,-420.0,0.00032876,5]
[361987492,1747926635555,-420.0,0.00032876,5]
[361987495,1747926635565,-609.47,0.00032876,5]
[361987497,1747926635574,-501.18,0.00032876,5]
[361987498,1747926635584,-756.74,0.00032876,5]
[361987500,1747926635593,-420.0,0.00032876,5]
[361987503,1747926635603,-937.26,0.00032876,5]
[361987505,1747926635612,-420.0,0.00032876,5]
[361987507,1747926635622,-420.0,0.00032876,5]
[361987508,1747926635632,-795.61,0.00032876,5]
[361987511,1747926635642,-681.7,0.00032876,5]
[361987513,1747926635652,-420.0,0.00032876,5]
[361987515,1747926635662,-711.09,0.00032876,5]
[361987517,1747926635671,-420.0,0.00032876,5]
[361987519,1747926635681,-420.0,0.00032876,5]
[361987521,1747926635690,-420.0,0.00032876,5]
[361987522,1747926635699,-420.0,0.00032876,5]
[361987525,1747926635709,-656.33,0.00032876,5]
[361987527,1747926635719,-578.37,0.00032876,5]
[361987529,1747926635729,-967.48,0.00032876,5]
[361987530,1747926635739,-509.85,0.00032876,5]
[361987533,1747926635748,-835.81,0.00032876,5]
[361987534,1747926635758,-420.0,0.00032876,5]
[361987537,1747926635768,-420.0,0.00032876,5]
[361987539,1747926635778,-615.04,0.00032876,5]
[361987540,1747926635789,-420.0,0.00032876,5]
[361987542,1747926635798,-420.0,0.00032876,5]
[361987545,1747926635808,-668.71,0.00032876,5]
[361987547,1747926635817,-420.0,0.00032876,5]
[361987549,1747926635827,-691.89,0.00032876,5]
[361987550,1747926635837,-420.0,0.00032876,5]
[361987552,1747926635847,-420.0,0.00032876,5]
[361987555,1747926635858,-483.33,0.00032876,5]
[361987556,1747926635868,-420.0,0.00032876,5]
[361987558,1747926635877,-420.0,0.00032876,5]
[361987560,1747926635887,-490.18,0.00032876,5]
[361987562,1747926635897,-420.0,0.00032876,5]
[361987564,1747926635907,-748.34,0.00032876,5]
[361987567,1747926635917,-458.5,0.00032876,5]
[361987568,1747926635926,-746.09,0.00032876,5]
[361987571,1747926635936,-583.65,0.00032876,5]
[361987573,1747926635946,-655.63,0.00032876,5]
[361987574,1747926635956,-246.96063168,0.00032876,5]
[361987576,1747926635966,-488.26667778,0.00032876,5]
[361987578,1747926635975,-420.0,0.00032876,5]
[361987580,1747926635985,-420.0,0.00032876,5]
[361987582,1747926635994,-613.03,0.00032876,5]
[361987584,1747926636004,-663.99,0.00032876,5]
[361987586,1747926636014,-854.89,0.00032876,5]
[361987588,1747926636023,-457.26,0.00032876,5]
[361987590,1747926636033,-420.0,0.00032876,5]
[361987592,1747926636042,-621.68,0.00032876,5]
[361987594,1747926636052,-420.0,0.00032876,5]
[361987596,1747926636062,-420.0,0.00032876,2]
[361987598,1747926636072,-420.0,0.00032876,5]
[361987601,1747926636081,-800.83,0.00032876,5]
[361987603,1747926636091,-825.86,0.00032876,5]
[361987605,1747926636100,-420.0,0.00032876,5]
[361987607,1747926636110,-712.13,0.00032876,5]
[361987609,1747926636119,-860.16,0.00032876,5]
[361987611,1747926636129,-436.39,0.00032876,5]
[361987612,1747926636138,-420.0,0.00032876,5]
[361987615,1747926636148,-420.0,0.00032876,5]
[361987617,1747926636158,-439.11,0.00032876,5]
[361987619,1747926636168,-420.0,0.00032876,5]
[361987621,1747926636178,-782.81,0.00032876,5]
[361987623,1747926636188,-420.0,0.00032876,5]
[361987625,1747926636197,-745.09,0.00032876,5]
[361987626,1747926636206,-955.66,0.00032876,5]
[361987628,1747926636216,-420.0,0.00032876,5]
[361987630,1747926636226,-775.86,0.00032876,5]
[361987632,1747926636235,-625.21,0.00032876,5]
[361987634,1747926636245,-742.07,0.00032876,5]
[361987637,1747926636254,-420.0,0.00032876,5]
[361987639,1747926636264,-594.57,0.00032876,5]
[361987641,1747926636274,-420.0,0.00032876,5]
[361987643,1747926636283,-420.0,0.00032876,5]
[361987645,1747926636293,-420.0,0.00032876,5]
[361987647,1747926636302,-420.0,0.00032876,5]
[361987648,1747926636313,-662.0,0.00032876,5]
[361987650,1747926636323,-843.45,0.00032876,5]
[361987653,1747926636333,-420.0,0.00032876,5]
[361987655,1747926636343,-420.0,0.00032876,5]
[361987656,1747926636354,-420.0,0.00032876,5]
[361987659,1747926636364,-420.0,0.00032876,5]
[361987660,1747926636374,-557.98,0.00032876,5]
[361987662,1747926636383,-910.2,0.00032876,5]
[361987664,1747926636394,-420.0,0.00032876,5]
[361987667,1747926636405,-420.0,0.00032876,5]
[361987668,1747926636414,-420.0,0.00032876,5]
[361987671,1747926636424,-420.0,0.00032876,5]
[361987672,1747926636435,-1198.63,0.00032876,5]
[361987674,1747926636444,-865.52,0.00032876,5]
[361987677,1747926636457,-621.25,0.00032876,5]
[361987679,1747926636466,-420.0,0.00032876,5]
[361987681,1747926636476,-500.0,0.00032876,30]
[361987682,1747926636486,-422.62,0.00032876,5]
[361987685,1747926636498,-537.24,0.00032876,5]
[361987686,1747926636508,-681.68,0.00032876,5]
[361987689,1747926636517,-705.35,0.00032876,5]
[361987690,1747926636527,-420.0,0.00032876,5]
[361987692,1747926636536,-420.0,0.00032876,5]
[361987694,1747926636545,-630.88,0.00032876,5]
[361987697,1747926636554,-420.0,0.00032876,5]
[361987699,1747926636564,-420.0,0.00032876,5]
[361987701,1747926636574,-536.87,0.00032876,5]
[361987703,1747926636583,-420.0,0.00032876,5]
[361987705,1747926636592,-420.0,0.00032876,5]
[361987707,1747926636602,-420.0,0.00032876,5]
[361987709,1747926636611,-457.33,0.00032876,5]
[361987711,1747926636621,-1019.4,0.00032876,5]
[361987713,1747926636630,-420.0,0.00032876,5]
[361987715,1747926636640,-1533.12,0.00032876,5]
[361987717,1747926636650,-509.74,0.00032876,5]
[361987719,1747926636661,-150.7052924,0.00032876,5]
[361987721,1747926636671,-428.04,0.00032876,5]
[361987723,1747926636681,-445.46,0.00032876,5]
[361987725,1747926636690,-1561.66,0.00032876,5]
[361987727,1747926636700,-481.37,0.00032876,5]
[361987729,1747926636709,-1140.51,0.00032876,5]
[361987731,1747926636719,-420.0,0.00032876,5]
[361987733,1747926636729,-420.0,0.00032876,5]
[361987735,1747926636740,-466.32,0.00032876,5]
[361987737,1747926636749,-878.75,0.00032876,5]
[361987739,1747926636758,-420.0,0.00032876,5]
[361987741,1747926636770,-478.98,0.00032876,5]
[361987743,1747926636779,-671.97,0.00032876,5]
[361987745,1747926636789,-420.0,0.00032876,5]
[361987747,1747926636798,-440.00957485,0.00032876,5]
[361987749,1747926636808,-420.0,0.00032876,5]
[361987751,1747926636819,-420.0,0.00032876,5]
[361987753,1747926636829,-420.0,0.00032876,5]
[361987755,1747926636838,-448.93,0.00032876,5]
[361987757,1747926636847,-420.0,0.00032876,5]
[361987759,1747926636857,-902.33,0.00032876,5]
[361987761,1747926636867,-420.0,0.00032876,5]
[361987763,1747926636877,-514.47,0.00032876,5]
[361987765,1747926636887,-420.0,0.00032876,5]
[361987766,1747926636896,-544.13,0.00032876,5]
[361987767,1747926636906,-889.6,0.00032876,5]
[361987768,1747926636915,-428.05,0.00032876,5]
[361987769,1747926636924,-506.35,0.00032876,5]
[361987770,1747926636934,-420.0,0.00032876,5]
[361987771,1747926636944,-698.39,0.00032876,5]
[361987772,1747926636953,-420.0,0.00032876,5]
[361987773,1747926636963,-872.96,0.00032876,5]
[361987774,1747926636973,-281.10166381,0.00032876,5]
[361987775,1747926636983,-420.0,0.00032876,5]
[361987776,1747926636993,-758.56,0.00032876,5]
[361987778,1747926637003,-420.0,0.00032876,5]
[361987781,1747926637018,-420.0,0.00032876,5]
[361987783,1747926637028,-420.0,0.00032876,5]
[361987785,1747926637038,-420.0,0.00032876,5]
[361987787,1747926637048,-420.0,0.00032876,5]
[361987789,1747926637058,-599.74,0.00032876,5]
[361987791,1747926637067,-866.38,0.00032876,5]
[361987793,1747926637077,-420.0,0.00032876,5]
[361987794,1747926637086,-420.0,0.00032876,5]
[361987797,1747926637096,-420.0,0.00032876,5]
[361987799,1747926637106,-535.0,0.00032876,5]
[361987800,1747926637115,-420.0,0.00032876,10]
[361987802,1747926637125,-636.74,0.00032876,5]
[361987804,1747926637135,-420.0,0.00032876,5]
[361987806,1747926637145,-420.0,0.00032876,5]
[361987808,1747926637155,-536.15,0.00032876,5]
[361987810,1747926637165,-1590.51,0.00032876,5]
[361987812,1747926637174,-420.0,0.00032876,5]
[361987814,1747926637184,-420.0,0.00032876,5]
[361987816,1747926637193,-420.0,0.00032876,5]
[361987818,1747926637203,-420.0,0.00032876,5]
[361987820,1747926637212,-420.0,0.00032876,5]
[361987822,1747926637222,-420.0,0.00032876,5]
[361987824,1747926637232,-1817.81,0.00032876,5]
[361987827,1747926637244,-755.79,0.00032876,5]
[361987829,1747926637254,-805.63,0.00032876,5]
[361987840,1747926637355,-420.0,0.00032876,5]
[361987842,1747926637365,-840.45,0.00032876,5]
[361987844,1747926637374,-420.0,0.00032876,5]
[361987846,1747926637384,-519.2,0.00032876,5]
[361987848,1747926637394,-622.04,0.00032876,5]
[361987849,1747926637404,-420.0,0.00032876,5]
[361987851,1747926637413,-420.0,0.00032876,5]
[361987853,1747926637423,-661.51,0.00032876,5]
[361987855,1747926637433,-622.97,0.00032876,5]
[361987857,1747926637443,-605.99,0.00032876,5]
[361987860,1747926637452,-420.0,0.00032876,5]
[361987862,1747926637461,-420.0,0.00032876,5]
[361987863,1747926637471,-420.0,0.00032876,5]
[361987866,1747926637481,-420.0,0.00032876,5]
[361987868,1747926637490,-420.0,0.00032876,5]
[361987869,1747926637499,-420.0,0.00032876,5]
[361987871,1747926637510,-420.0,0.00032876,5]
[361987873,1747926637520,-561.99,0.00032876,5]
[361987875,1747926637529,-605.29,0.00032876,5]
[361987877,1747926637538,-735.06,0.00032876,5]
[361987879,1747926637547,-420.0,0.00032876,5]
[361987881,1747926637557,-754.32,0.00032876,5]
[361987883,1747926637566,-546.76,0.00032876,5]
[361987885,1747926637576,-420.0,0.00032876,5]
[361987887,1747926637586,-420.0,0.00032876,5]
[361987889,1747926637595,-420.0,0.00032876,5]
[361987891,1747926637605,-420.0,0.00032876,5]
[361987893,1747926637615,-692.2,0.00032876,5]
[361987895,1747926637624,-420.0,0.00032876,5]
[361987897,1747926637634,-1037.76,0.00032876,5]
[361987899,1747926637644,-617.6,0.00032876,5]
[361987901,1747926637655,-420.0,0.00032876,5]
[361987903,1747926637664,-723.16,0.00032876,5]
[361987906,1747926637673,-594.06,0.00032876,5]
[361987909,1747926637683,-420.0,0.00032876,5]
[361987912,1747926637692,-944.65,0.00032876,5]
[361987914,1747926637701,-420.0,0.00032876,5]
[361987916,1747926637710,-420.0,0.00032876,5]
[361987918,1747926637720,-420.0,0.00032876,5]
[361987920,1747926637729,-420.0,0.00032876,5]
[361987922,1747926637738,-584.96,0.00032876,5]
[361987924,1747926637748,-420.0,0.00032876,5]
[361987926,1747926637757,-420.0,0.00032876,5]
[361987928,1747926637766,-550.47,0.00032876,5]
[361987929,1747926637775,-420.0,0.00032876,5]
[361987931,1747926637784,-420.0,0.00032876,5]
[361987933,1747926637797,-420.0,0.00032876,5]
[361987935,1747926637807,-420.0,0.00032876,5]
[361987937,1747926637816,-837.11,0.00032876,5]
[361987939,1747926637826,-652.07,0.00032876,5]
[361987941,1747926637836,-420.0,0.00032876,5]
[361987944,1747926637846,-1087.8,0.00032876,5]
[361987945,1747926637860,-420.0,0.00032876,5]
[361987948,1747926637871,-420.0,0.00032876,5]
[361987949,1747926637884,-433.87,0.00032876,5]
[361987951,1747926637894,-587.66,0.00032876,5]
[361987953,1747926637905,-420.0,0.00032876,5]
[361987955,1747926637915,-1002.05,0.00032876,5]
[361987957,1747926637924,-420.0,0.00032876,5]
[361987959,1747926637934,-475.98,0.00032876,5]
[361987961,1747926637943,-420.0,0.00032876,5]
[361987963,1747926637952,-545.92,0.00032876,5]
[361987965,1747926637962,-420.0,0.00032876,5]
[361987967,1747926637971,-954.75,0.00032876,5]
[361987969,1747926637980,-420.0,0.00032876,5]
[361987971,1747926637991,-859.84,0.00032876,5]
[361987973,1747926638000,-819.71,0.00032876,5]
[361987975,1747926638010,-420.0,0.00032876,5]
[361987977,1747926638019,-515.8,0.00032876,5]
[361987979,1747926638028,-490.78,0.00032876,5]
[361987981,1747926638038,-420.0,0.00032876,5]
[361987983,1747926638047,-420.0,0.00032876,5]
[361987985,1747926638056,-431.01,0.00032876,5]
[361987987,1747926638065,-427.77,0.00032876,5]
[361987989,1747926638074,-420.0,0.00032876,5]
[361987991,1747926638084,-1147.38,0.00032876,5]
[361987993,1747926638093,-667.89,0.00032876,5]
[361987995,1747926638102,-432.0,0.00032876,5]
[361987997,1747926638112,-420.0,0.00032876,5]
[361987999,1747926638121,-420.0,0.00032876,5]
[361988001,1747926638131,-420.0,0.00032876,5]
[361988003,1747926638139,-420.0,0.00032876,5]
[361988005,1747926638149,-420.0,0.00032876,5]
[361988007,1747926638159,-420.0,0.00032876,5]
[361988009,1747926638168,-420.0,0.00032876,5]
[361988011,1747926638177,-420.0,0.00032876,5]
[361988012,1747926638186,-420.0,0.00032876,5]
[361988014,1747926638196,-420.0,0.00032876,5]
[361988016,1747926638205,-457.06,0.00032876,5]
[361988018,1747926638215,-420.0,0.00032876,5]
[361988020,1747926638223,-508.41,0.00032876,5]
[361988022,1747926638233,-690.61,0.00032876,5]
[361988024,1747926638242,-12263.0,0.00032876,5]
[361988026,1747926638251,-543.69334602,0.00032876,5]
[361988028,1747926638260,-238.81099437,0.00032876,5]
[361988030,1747926638270,-457.47,0.00032876,5]
[361988032,1747926638279,-512.34,0.00032876,5]
[361988034,1747926638288,-624.45,0.00032876,5]
[361988036,1747926638298,-429.49430753,0.00032876,5]
[361988038,1747926638307,-420.0,0.00032876,5]
[361988040,1747926638320,-1085.97,0.00032876,5]
[361988042,1747926638329,-420.0,0.00032876,5]
[361988044,1747926638339,-429.29,0.00032876,5]
[361988046,1747926638348,-1110.73,0.00032876,5]
[361988048,1747926638358,-420.0,0.00032876,5]
[361988050,1747926638367,-576.63,0.00032876,5]
[361988052,1747926638377,-420.0,0.00032876,5]
[361988054,1747926638386,-765.32,0.00032876,5]
[361988056,1747926638397,-1101.74,0.00032876,5]
[361988058,1747926638408,-420.0,0.00032876,5]
[361988060,1747926638418,-3414.68,0.00032876,5]
[361988062,1747926638427,-420.0,0.00032876,5]
[361988064,1747926638437,-1052.49,0.00032876,5]
[361988066,1747926638446,-420.0,0.00032876,5]
[361988068,1747926638458,-601.41,0.00032876,5]
[361988070,1747926638468,-420.0,0.00032876,5]
[361988072,1747926638477,-420.0,0.00032876,5]
[361988073,1747926638488,-2000.0,0.00032876,5]
[361988074,1747926638497,-420.0,0.00032876,5]
[361988075,1747926638506,-420.0,0.00032876,5]
[361988076,1747926638519,-420.0,0.00032876,5]
[361988077,1747926638528,-420.0,0.00032876,5]
[361988078,1747926638538,-420.0,0.00032876,5]
[361988079,1747926638547,-627.02,0.00032876,5]
[361988080,1747926638556,-1464.85,0.00032876,5]
[361988081,1747926638565,-420.0,0.00032876,5]
[361988082,1747926638574,-420.0,0.00032876,5]
[361988084,1747926638583,-915.95,0.00032876,5]
[361988086,1747926638592,-420.0,0.00032876,5]
[361988088,1747926638601,-420.0,0.00032876,5]
[361988090,1747926638610,-420.0,0.00032876,5]
[361988092,1747926638619,-579.48,0.00032876,5]
[361988094,1747926638628,-535.11,0.00032876,5]
[361988096,1747926638637,-1043.43,0.00032876,5]
[361988098,1747926638646,-508.98,0.00032876,5]
[361988100,1747926638656,-420.0,0.00032876,5]
[361988101,1747926638665,-420.0,0.00032876,5]
[361988103,1747926638675,-1022.01,0.00032876,5]
[361988105,1747926638684,-420.0,0.00032876,5]
[361988107,1747926638694,-420.0,0.00032876,5]
[361988109,1747926638703,-420.0,0.00032876,5]
[361988111,1747926638712,-420.0,0.00032876,5]
[361988113,1747926638721,-420.0,0.00032876,5]
[361988115,1747926638731,-983.5,0.00032876,5]
[361988117,1747926638740,-300.0,0.00032876,5]
[361988119,1747926638749,-1957.83,0.00032876,5]
[361988121,1747926638758,-664.96,0.00032876,5]
[361988123,1747926638767,-420.0,0.00032876,5]
[361988125,1747926638777,-413.40051549,0.00032876,5]
[361988127,1747926638786,-2284.08,0.00032876,5]
[361988129,1747926638795,-420.0,0.00032876,5]
[361988131,1747926638805,-442.09,0.00032876,5]
[361988133,1747926638814,-420.0,0.00032876,5]
[361988135,1747926638823,-624.29,0.00032876,5]
[361988137,1747926638833,-3776.72,0.00032876,5]
[361988139,1747926638842,-341.48756775,0.00032876,5]
[361988141,1747926638851,-820.33,0.00032876,5]
[361988143,1747926638859,-824.97,0.00032876,5]
[361988145,1747926638868,-1009.95,0.00032876,5]
[361988147,1747926638878,-420.0,0.00032876,5]
[361988149,1747926638888,-448.98,0.00032876,5]
[361988151,1747926638897,-902.07,0.00032876,5]
[361988153,1747926638908,-643.93,0.00032876,5]
[361988155,1747926638918,-792.58,0.00032876,5]
[361988157,1747926638927,-420.0,0.00032876,5]
[361988159,1747926638936,-960.6,0.00032876,5]
[361988161,1747926638946,-420.0,0.00032876,5]
[361988163,1747926638955,-420.0,0.00032876,5]
[361988165,1747926638964,-420.0,0.00032876,5]
[361988167,1747926638974,-683.69,0.00032876,5]
[361988169,1747926638983,-731.54,0.00032876,5]
[361988171,1747926638992,-420.0,0.00032876,5]
[361988173,1747926639001,-420.0,0.00032876,5]
[361988175,1747926639011,-1331.91,0.00032876,5]
[361988177,1747926639020,-422.51,0.00032876,5]
[361988179,1747926639029,-420.0,0.00032876,5]
[361988181,1747926639038,-483.82,0.00032876,5]
[361988183,1747926639048,-1964.44,0.00032876,5]
[361988184,1747926639057,-420.0,0.00032876,5]
[361988186,1747926639067,-420.0,0.00032876,5]
[361988188,1747926639076,-1263.19,0.00032876,5]
[361988190,1747926639086,-420.0,0.00032876,5]
[361988192,1747926639096,-1053.34,0.00032876,5]
[361988194,1747926639105,-420.0,0.00032876,5]
[361988196,1747926639115,-561.76,0.00032876,5]
[361988198,1747926639124,-857.67,0.00032876,5]
[361988200,1747926639134,-1004.69,0.00032876,5]
[361988202,1747926639143,-420.0,0.00032876,5]
[361988204,1747926639152,-1298.73,0.00032876,5]
[361988206,1747926639161,-647.56,0.00032876,5]
[361988208,1747926639171,-715.92,0.00032876,5]
[361988210,1747926639180,-670.71,0.00032876,5]
[361988212,1747926639189,-420.0,0.00032876,5]
[361988214,1747926639199,-420.0,0.00032876,5]
[361988216,1747926639208,-420.0,0.00032876,5]
[361988218,1747926639217,-596.7,0.00032876,5]
[361988220,1747926639227,-420.0,0.00032876,5]
[361988222,1747926639236,-420.0,0.00032876,5]
[361988224,1747926639245,-420.0,0.00032876,5]
[361988226,1747926639255,-420.0,0.00032876,5]
[361988228,1747926639265,-5048.5,0.00032876,5]
[361988230,1747926639274,-1049.06,0.00032876,5]
[361988232,1747926639284,-1034.06,0.00032876,5]
[361988234,1747926639294,-420.0,0.00032876,5]
[361988236,1747926639304,-1129.04,0.00032876,5]
[361988238,1747926639315,-693.16,0.00032876,5]
[361988240,1747926639325,-508.2,0.00032876,5]
[361988242,1747926639334,-460.26,0.00032876,5]
[361988244,1747926639343,-420.0,0.00032876,5]
[361988246,1747926639353,-420.0,0.00032876,5]
[361988247,1747926639362,-175.11565406,0.00032876,5]
[361988249,1747926639371,-2418.11,0.00032876,5]
[361988251,1747926639380,-420.0,0.00032876,5]
[361988253,1747926639391,-479.7,0.00032876,5]
[361988255,1747926639401,-420.0,0.00032876,5]
[361988257,1747926639411,-420.0,0.00032876,5]
[361988259,1747926639421,-615.01,0.00032876,5]
[361988261,1747926639430,-910.47,0.00032876,5]
[361988263,1747926639439,-420.0,0.00032876,5]
[361988265,1747926639449,-420.0,0.00032876,5]
[361988267,1747926639458,-748.92,0.00032876,5]
[361988269,1747926639467,-420.0,0.00032876,5]
[361988271,1747926639477,-420.0,0.00032876,5]
[361988273,1747926639489,-420.0,0.00032876,5]
[361988275,1747926639499,-1153.69,0.00032876,5]
[361988277,1747926639508,-484.11,0.00032876,5]
[361988279,1747926639517,-420.0,0.00032876,5]
[361988281,1747926639526,-1349.36,0.00032876,5]